[Event "Elitserien 2019/2020, round 1-3"]
[Site "Uppsala University, Gamla torget, Uppsala, Sweden"]
[Date "2019.10.18"]
[Round "1.32"]
[White "Lundberg, David"]
[Black "Eriksson, Anders"]
[Result "1-0"]
[TimeControl "90 minutes for 40 moves + 30 minutes for the rest of the game + 30 seconds per move from move one."]
[BlackTitle "FM"]
[WhiteFideId "1707051"]
[BlackFideId "1701053"]
[WhiteElo "2205"]
[BlackElo "2237"]

1. e4 {[%clk 01:30:18]} {[%emt 00:00:41]} c6 {[%clk 01:30:50]} {[%emt
00:00:09]} 2. d4 {[%clk 01:29:57]} {[%emt 00:00:52]} d5 {[%clk 01:31:14]}
{[%emt 00:00:06]} 3. e5 {[%clk 01:30:23]} {[%emt 00:00:05]} Bf5 {[%clk
01:31:33]} {[%emt 00:00:10]} 4. h4 {[%clk 01:30:04]} {[%emt 00:00:49]} h5
{[%clk 01:31:15]} {[%emt 00:00:48]} 5. Nf3 {[%clk 01:29:54]} {[%emt 00:00:40]}
e6 {[%clk 01:31:21]} {[%emt 00:00:23]} 6. c4 {[%clk 01:26:03]} {[%emt
00:04:23]} Ne7 {[%clk 01:30:41]} {[%emt 00:01:10]} 7. Nc3 {[%clk 01:26:17]}
{[%emt 00:00:16]} Nd7 {[%clk 01:28:39]} {[%emt 00:02:32]} 8. Bg5 {[%clk
01:17:13]} {[%emt 00:09:34]} f6 {[%clk 01:22:05]} {[%emt 00:07:03]} 9. exf6
{[%clk 01:11:47]} {[%emt 00:05:57]} gxf6 {[%clk 01:22:10]} {[%emt 00:00:25]} 10.
Be3 {[%clk 01:07:46]} {[%emt 00:04:31]} Nb6 {[%clk 01:10:56]} {[%emt 00:11:44]}
11. b3 {[%clk 01:01:32]} {[%emt 00:06:45]} Bg7 {[%clk 01:02:12]} {[%emt
00:09:14]} 12. Be2 {[%clk 00:52:49]} {[%emt 00:09:13]} Bg6 {[%clk 00:54:28]}
{[%emt 00:08:13]} 13. O-O {[%clk 00:44:51]} {[%emt 00:08:29]} Nf5 {[%clk
00:45:09]} {[%emt 00:09:48]} 14. Bf4 {[%clk 00:37:34]} {[%emt 00:07:49]} Kf7
{[%clk 00:39:39]} {[%emt 00:05:59]} 15. Re1 {[%clk 00:30:41]} {[%emt 00:07:23]}
Qe7 {[%clk 00:30:55]} {[%emt 00:09:13]} 16. Rc1 {[%clk 00:21:39]} {[%emt
00:09:34]} Rae8 {[%clk 00:19:18]} {[%emt 00:12:06]} 17. a4 {[%clk 00:17:20]}
{[%emt 00:04:49]} a5 {[%clk 00:16:54]} {[%emt 00:02:55]} 18. Qd2 {[%clk
00:13:09]} {[%emt 00:04:41]} Qd8 {[%clk 00:15:34]} {[%emt 00:01:49]} 19. Bd3
{[%clk 00:06:31]} {[%emt 00:07:08]} Nh6 {[%clk 00:11:03]} {[%emt 00:05:01]} 20.
Bxg6+ {[%clk 00:05:15]} {[%emt 00:01:46]} Kxg6 {[%clk 00:11:27]} {[%emt
00:00:07]} 21. Bxh6 {[%clk 00:04:05]} {[%emt 00:01:39]} Bxh6 {[%clk 00:11:35]}
{[%emt 00:00:23]} 22. Qd3+ {[%clk 00:04:25]} {[%emt 00:00:10]} Kf7 {[%clk
00:11:34]} {[%emt 00:00:30]} 23. Rc2 {[%clk 00:03:40]} {[%emt 00:01:16]} Kg7
{[%clk 00:07:29]} {[%emt 00:04:35]} 24. Rce2 {[%clk 00:02:21]} {[%emt
00:01:49]} Qd7 {[%clk 00:07:34]} {[%emt 00:00:25]} 25. Kf1 {[%clk 00:01:07]}
{[%emt 00:01:44]} Na8 {[%clk 00:06:33]} {[%emt 00:01:30]} 26. Nd1 {[%clk
00:00:50]} {[%emt 00:00:48]} Nc7 {[%clk 00:06:17]} {[%emt 00:00:46]} 27. Ne3
{[%clk 00:00:47]} {[%emt 00:00:33]} Bf4 {[%clk 00:05:27]} {[%emt 00:01:19]} 28.
g3 {[%clk 00:00:57]} {[%emt 00:00:21]} Bd6 {[%clk 00:05:45]} {[%emt 00:00:11]}
29. c5 {[%clk 00:00:45]} {[%emt 00:00:42]} Bf8 {[%clk 00:05:55]} {[%emt
00:00:20]} 30. Ng2 {[%clk 00:01:12]} {[%emt 00:00:04]} Qf7 {[%clk 00:04:02]}
{[%emt 00:02:22]} 31. Nf4 {[%clk 00:01:32]} {[%emt 00:00:10]} Kh6 {[%clk
00:03:22]} {[%emt 00:01:10]} 32. Qd2 {[%clk 00:01:33]} {[%emt 00:00:29]} Kh7
{[%clk 00:03:12]} {[%emt 00:00:40]} 33. Qxa5 {[%clk 00:01:40]} {[%emt
00:00:24]} Bg7 {[%clk 00:03:32]} {[%emt 00:00:09]} 34. Qb6 {[%clk 00:01:00]}
{[%emt 00:01:09]} Na8 {[%clk 00:03:32]} {[%emt 00:00:31]} 35. Qa7 {[%clk
00:01:11]} {[%emt 00:00:19]} e5 {[%clk 00:03:24]} {[%emt 00:00:39]} 36. dxe5
{[%clk 00:01:22]} {[%emt 00:00:19]} fxe5 {[%clk 00:03:41]} {[%emt 00:00:13]} 37.
Ng5+ {[%clk 00:01:49]} {[%emt 00:00:01]} 1-0

[Event "Elitserien 2019/2020, round 1-3"]
[Site "Uppsala University, Gamla torget, Uppsala, Sweden"]
[Date "2019.10.19"]
[Round "2.1"]
[White "Neiksans, Arturs"]
[Black "Golubka, Petro"]
[Result "1/2-1/2"]
[TimeControl "90 minutes for 40 moves + 30 minutes for the rest of the game + 30 seconds per move from move one."]
[WhiteTitle "GM"]
[BlackTitle "IM"]
[WhiteFideId "11601388"]
[BlackFideId "14114224"]
[WhiteElo "2577"]
[BlackElo "2479"]

1. e4 {[%clk 01:30:59]} e5 {[%clk 01:30:36]} {[%emt 00:00:24]} 2. Nf3 {[%clk
01:31:22]} {[%emt 00:00:07]} Nc6 {[%clk 01:31:02]} {[%emt 00:00:04]} 3. Bc4
{[%clk 01:31:26]} {[%emt 00:00:26]} Bc5 {[%clk 01:30:36]} {[%emt 00:00:56]} 4.
O-O {[%clk 01:30:33]} {[%emt 00:01:23]} Nf6 {[%clk 01:31:02]} {[%emt 00:00:04]}
5. d3 {[%clk 01:30:59]} {[%emt 00:00:03]} O-O {[%clk 01:31:16]} {[%emt
00:00:17]} 6. c3 {[%clk 01:31:07]} {[%emt 00:00:22]} Be7 {[%clk 01:29:14]}
{[%emt 00:02:32]} 7. Re1 {[%clk 01:28:37]} {[%emt 00:03:01]} d6 {[%clk
01:24:42]} {[%emt 00:05:01]} 8. a4 {[%clk 01:28:54]} {[%emt 00:00:12]} a5
{[%clk 01:25:08]} {[%emt 00:00:04]} 9. Na3 {[%clk 01:26:48]} {[%emt 00:02:36]}
Nd7 {[%clk 01:25:17]} {[%emt 00:00:22]} 10. Be3 {[%clk 01:21:08]} {[%emt
00:06:10]} Kh8 {[%clk 01:24:49]} {[%emt 00:00:59]} 11. Qb3 {[%clk 01:17:14]}
{[%emt 00:04:23]} f5 {[%clk 01:25:04]} {[%emt 00:00:15]} 12. exf5 {[%clk
01:14:25]} {[%emt 00:03:19]} Rxf5 {[%clk 01:24:58]} {[%emt 00:00:35]} 13. Be6
{[%clk 01:06:35]} {[%emt 00:08:20]} Rf8 {[%clk 01:24:50]} {[%emt 00:00:39]} 14.
Nb5 {[%clk 01:06:31]} {[%emt 00:00:34]} Bf6 {[%clk 01:21:23]} {[%emt 00:03:57]}
15. Rad1 {[%clk 01:04:01]} {[%emt 00:02:59]} Ndb8 {[%clk 01:17:23]} {[%emt
00:04:31]} 16. d4 {[%clk 00:55:41]} {[%emt 00:08:50]} Bxe6 {[%clk 01:15:22]}
{[%emt 00:02:31]} 17. Qxe6 {[%clk 00:53:46]} {[%emt 00:02:24]} Nd7 {[%clk
01:09:44]} {[%emt 00:06:09]} 18. d5 {[%clk 00:37:53]} {[%emt 00:16:23]} Ne7
{[%clk 01:08:54]} {[%emt 00:01:21]} 19. Ng5 {[%clk 00:32:46]} {[%emt 00:05:36]}
Bxg5 {[%clk 01:08:32]} {[%emt 00:00:51]} 20. Bxg5 {[%clk 00:33:10]} {[%emt
00:00:06]} Nf6 {[%clk 01:08:55]} {[%emt 00:00:07]} 21. f4 {[%clk 00:33:34]}
{[%emt 00:00:06]} Ng6 {[%clk 01:09:11]} {[%emt 00:00:14]} 22. fxe5 {[%clk
00:33:26]} {[%emt 00:00:38]} Nxe5 {[%clk 01:09:32]} {[%emt 00:00:10]} 23. Rf1
{[%clk 00:32:02]} {[%emt 00:01:54]} Rf7 {[%clk 01:04:07]} {[%emt 00:05:55]} 24.
Nd4 {[%clk 00:24:11]} {[%emt 00:08:21]} Qf8 {[%clk 01:03:23]} {[%emt 00:01:14]}
25. Bxf6 {[%clk 00:21:29]} {[%emt 00:03:11]} gxf6 {[%clk 00:59:22]} {[%emt
00:04:31]} 26. Rf2 {[%clk 00:21:53]} {[%emt 00:00:07]} Re8 {[%clk 00:59:26]}
{[%emt 00:00:26]} 27. Qf5 {[%clk 00:21:19]} {[%emt 00:01:03]} Qh6 {[%clk
00:57:24]} {[%emt 00:02:32]} 28. Rdf1 {[%clk 00:17:56]} {[%emt 00:03:53]} Rg8
{[%clk 00:55:29]} {[%emt 00:02:26]} 29. Re2 {[%clk 00:14:15]} {[%emt 00:04:11]}
Ng4 {[%clk 00:54:09]} {[%emt 00:01:50]} 1/2-1/2

[Event "Elitserien 2019/2020, round 1-3"]
[Site "Uppsala University, Gamla torget, Uppsala, Sweden"]
[Date "2019.10.19"]
[Round "2.2"]
[White "Lindberg, Bengt"]
[Black "Blomqvist, Erik"]
[Result "1/2-1/2"]
[TimeControl "90 minutes for 40 moves + 30 minutes for the rest of the game + 30 seconds per move from move one."]
[WhiteTitle "IM"]
[BlackTitle "GM"]
[WhiteFideId "1700359"]
[BlackFideId "1709437"]
[WhiteElo "2397"]
[BlackElo "2519"]

1. e4 {[%clk 01:30:02]} {[%emt 00:00:57]} c5 {[%clk 01:30:48]} {[%emt
00:00:12]} 2. Nf3 {[%clk 01:30:10]} {[%emt 00:00:22]} e6 {[%clk 01:31:09]}
{[%emt 00:00:08]} 3. d4 {[%clk 01:30:30]} {[%emt 00:00:10]} cxd4 {[%clk
01:31:33]} {[%emt 00:00:06]} 4. Nxd4 {[%clk 01:30:55]} {[%emt 00:00:05]} Nc6
{[%clk 01:29:40]} {[%emt 00:02:24]} 5. Nc3 {[%clk 01:31:02]} {[%emt 00:00:22]}
a6 {[%clk 01:30:06]} {[%emt 00:00:06]} 6. Be3 {[%clk 01:31:06]} {[%emt
00:00:25]} Nf6 {[%clk 01:30:09]} {[%emt 00:00:27]} 7. a3 {[%clk 01:27:46]}
{[%emt 00:03:49]} Be7 {[%clk 01:28:57]} {[%emt 00:01:42]} 8. f4 {[%clk
01:25:49]} {[%emt 00:02:26]} d6 {[%clk 01:28:24]} {[%emt 00:01:04]} 9. Qf3
{[%clk 01:23:45]} {[%emt 00:02:33]} e5 {[%clk 01:28:20]} {[%emt 00:00:36]} 10.
Nf5 {[%clk 01:02:47]} {[%emt 00:21:27]} Bxf5 {[%clk 01:24:12]} {[%emt
00:04:39]} 11. exf5 {[%clk 01:03:14]} {[%emt 00:00:03]} Nd4 {[%clk 01:22:33]}
{[%emt 00:02:08]} 12. Bxd4 {[%clk 00:59:30]} {[%emt 00:04:14]} exd4 {[%clk
01:22:58]} {[%emt 00:00:06]} 13. Ne2 {[%clk 00:59:31]} {[%emt 00:00:28]} Qa5+
{[%clk 01:19:09]} {[%emt 00:04:20]} 14. b4 {[%clk 00:57:51]} {[%emt 00:02:10]}
Qb6 {[%clk 01:02:19]} {[%emt 00:17:20]} 15. g4 {[%clk 00:51:17]} {[%emt
00:07:03]} d5 {[%clk 01:01:22]} {[%emt 00:01:28]} 16. Ng3 {[%clk 00:51:22]}
{[%emt 00:00:24]} O-O-O {[%clk 00:49:52]} {[%emt 00:12:01]} 17. Bd3 {[%clk
00:48:07]} {[%emt 00:03:43]} Rhe8 {[%clk 00:42:16]} {[%emt 00:08:08]} 18. O-O
{[%clk 00:46:37]} {[%emt 00:01:59]} Bd6 {[%clk 00:42:33]} {[%emt 00:00:13]} 19.
g5 {[%clk 00:45:17]} {[%emt 00:01:49]} Re3 {[%clk 00:41:26]} {[%emt 00:01:38]}
20. Qg2 {[%clk 00:45:31]} {[%emt 00:00:16]} Ne4 {[%clk 00:41:00]} {[%emt
00:00:57]} 21. Kh1 {[%clk 00:38:09]} {[%emt 00:07:51]} Re8 {[%clk 00:39:10]}
{[%emt 00:02:20]} 22. Rf3 {[%clk 00:35:55]} {[%emt 00:02:43]} Nd2 {[%clk
00:33:05]} {[%emt 00:06:37]} 23. Rf2 {[%clk 00:26:45]} {[%emt 00:09:38]} Re1+
{[%clk 00:32:11]} {[%emt 00:01:25]} 24. Rxe1 {[%clk 00:27:08]} {[%emt
00:00:08]} Rxe1+ {[%clk 00:32:37]} {[%emt 00:00:04]} 25. Nf1 {[%clk 00:24:24]}
{[%emt 00:03:13]} Ne4 {[%clk 00:29:54]} {[%emt 00:03:14]} 26. Rf3 {[%clk
00:24:31]} {[%emt 00:00:21]} Kb8 {[%clk 00:26:29]} {[%emt 00:03:56]} 27. Qh3
{[%clk 00:21:33]} {[%emt 00:03:28]} f6 {[%clk 00:24:42]} {[%emt 00:02:18]} 28.
Qxh7 {[%clk 00:16:41]} {[%emt 00:05:22]} fxg5 {[%clk 00:25:02]} {[%emt
00:00:10]} 29. fxg5 {[%clk 00:17:01]} {[%emt 00:00:10]} Nxg5 {[%clk 00:24:39]}
{[%emt 00:00:53]} 30. Qg8+ {[%clk 00:17:17]} {[%emt 00:00:13]} Ka7 {[%clk
00:24:52]} {[%emt 00:00:18]} 31. Rf2 {[%clk 00:16:55]} {[%emt 00:00:51]} Nh3
{[%clk 00:22:12]} {[%emt 00:03:11]} 32. Rf3 {[%clk 00:17:03]} {[%emt 00:00:21]}
Ng5 {[%clk 00:17:40]} {[%emt 00:05:03]} 33. Rf2 {[%clk 00:17:26]} {[%emt
00:00:07]} Nh3 {[%clk 00:11:03]} {[%emt 00:07:07]} 34. Rf3 {[%clk 00:17:49]}
{[%emt 00:00:07]} Ng5 {[%clk 00:10:13]} {[%emt 00:01:20]} 1/2-1/2

[Event "Elitserien 2019/2020, round 1-3"]
[Site "Uppsala University, Gamla torget, Uppsala, Sweden"]
[Date "2019.10.19"]
[Round "2.4"]
[White "Alle Wahlin, Ambjorn"]
[Black "Hedman, Erik"]
[Result "1/2-1/2"]
[TimeControl "90 minutes for 40 moves + 30 minutes for the rest of the game + 30 seconds per move from move one."]
[BlackTitle "IM"]
[WhiteFideId "1714805"]
[BlackFideId "1702351"]
[WhiteElo "2256"]
[BlackElo "2371"]

1. Nf3 {[%clk 01:30:46]} {[%emt 00:00:13]} d5 {[%clk 01:30:36]} {[%emt
00:00:25]} 2. g3 {[%clk 01:31:05]} {[%emt 00:00:10]} c5 {[%clk 01:30:55]}
{[%emt 00:00:12]} 3. Bg2 {[%clk 01:31:28]} {[%emt 00:00:06]} Nc6 {[%clk
01:31:11]} {[%emt 00:00:15]} 4. d4 {[%clk 01:31:45]} {[%emt 00:00:12]} e6
{[%clk 01:31:21]} {[%emt 00:00:20]} 5. O-O {[%clk 01:31:46]} {[%emt 00:00:29]}
Nf6 {[%clk 01:31:33]} {[%emt 00:00:19]} 6. c4 {[%clk 01:31:55]} {[%emt
00:00:21]} Be7 {[%clk 01:31:59]} {[%emt 00:00:04]} 7. cxd5 {[%clk 01:30:22]}
{[%emt 00:02:03]} exd5 {[%clk 01:31:27]} {[%emt 00:01:02]} 8. Nc3 {[%clk
01:29:53]} {[%emt 00:00:58]} O-O {[%clk 01:31:48]} {[%emt 00:00:10]} 9. dxc5
{[%clk 01:29:15]} {[%emt 00:01:07]} Bxc5 {[%clk 01:32:03]} {[%emt 00:00:16]} 10.
a3 {[%clk 01:23:38]} {[%emt 00:06:07]} Ne4 {[%clk 01:31:56]} {[%emt 00:00:36]}
11. Qxd5 {[%emt 00:14:56]} Nxc3 {[%clk 01:28:29]} {[%emt 00:03:54]} 12. Qxc5
{[%clk 01:08:39]} {[%emt 00:01:08]} Nxe2+ {[%clk 01:27:58]} {[%emt 00:01:00]}
13. Kh1 {[%clk 01:08:53]} {[%emt 00:00:15]} Nxc1 {[%clk 01:28:17]} {[%emt
00:00:12]} 14. Raxc1 {[%clk 01:09:10]} {[%emt 00:00:12]} Re8 {[%clk 01:15:17]}
{[%emt 00:13:31]} 15. Rfe1 {[%clk 00:58:07]} {[%emt 00:11:33]} Rxe1+ {[%clk
00:48:15]} {[%emt 00:27:32]} 16. Rxe1 {[%clk 00:57:56]} {[%emt 00:00:40]} h6
{[%clk 00:48:39]} {[%emt 00:00:06]} 17. b4 {[%clk 00:53:50]} {[%emt 00:04:36]}
Be6 {[%clk 00:44:46]} {[%emt 00:04:24]} 18. b5 {[%clk 00:39:43]} {[%emt
00:14:36]} Qa5 {[%clk 00:42:14]} {[%emt 00:03:03]} 19. Rc1 {[%clk 00:29:36]}
{[%emt 00:10:37]} Nd8 {[%clk 00:42:11]} {[%emt 00:00:32]} 20. Rd1 {[%clk
00:22:41]} {[%emt 00:07:25]} a6 {[%clk 00:39:39]} {[%emt 00:03:03]} 21. Nd4
{[%clk 00:20:21]} {[%emt 00:02:49]} axb5 {[%clk 00:34:18]} {[%emt 00:05:52]} 22.
Qxb5 {[%clk 00:17:30]} {[%emt 00:03:21]} Qxa3 {[%clk 00:22:58]} {[%emt
00:11:49]} 23. Nxe6 {[%clk 00:16:58]} {[%emt 00:01:02]} Nxe6 {[%clk 00:23:17]}
{[%emt 00:00:12]} 24. Qxb7 {[%clk 00:16:52]} {[%emt 00:00:36]} Rd8 {[%clk
00:22:30]} {[%emt 00:01:16]} 25. Rxd8+ {[%clk 00:15:08]} {[%emt 00:02:14]} Nxd8
{[%clk 00:22:54]} {[%emt 00:00:06]} 26. Qb1 {[%clk 00:15:32]} {[%emt 00:00:06]}
Qd6 {[%clk 00:22:20]} {[%emt 00:01:05]} 27. Bf3 {[%clk 00:15:26]} {[%emt
00:00:36]} Ne6 {[%clk 00:21:41]} {[%emt 00:01:07]} 28. h4 {[%clk 00:13:42]}
{[%emt 00:02:15]} h5 {[%clk 00:18:56]} {[%emt 00:03:15]} 29. Qd1 {[%clk
00:12:53]} {[%emt 00:01:20]} Qxd1+ {[%clk 00:15:48]} {[%emt 00:03:38]} 30. Bxd1
{[%clk 00:13:14]} {[%emt 00:00:08]} 1/2-1/2

[Event "Elitserien 2019/2020, round 1-3"]
[Site "Uppsala University, Gamla torget, Uppsala, Sweden"]
[Date "2019.10.19"]
[Round "2.5"]
[White "Wiedenkeller, Michael"]
[Black "Rydstrom, Tom"]
[Result "0-1"]
[TimeControl "90 minutes for 40 moves + 30 minutes for the rest of the game + 30 seconds per move from move one."]
[WhiteTitle "IM"]
[BlackTitle "FM"]
[WhiteFideId "1700146"]
[BlackFideId "1714830"]
[WhiteElo "2459"]
[BlackElo "2322"]

1. d4 {[%clk 01:30:20]} {[%emt 00:00:39]} Nf6 {[%clk 01:30:29]} {[%emt
00:00:32]} 2. c4 {[%clk 01:30:23]} {[%emt 00:00:26]} e6 {[%clk 01:30:56]}
{[%emt 00:00:03]} 3. Nc3 {[%clk 01:30:28]} {[%emt 00:00:26]} Bb4 {[%clk
01:29:55]} {[%emt 00:01:30]} 4. Qc2 {[%clk 01:30:09]} {[%emt 00:00:49]} c5
{[%clk 01:30:08]} {[%emt 00:00:17]} 5. dxc5 {[%clk 01:29:41]} {[%emt 00:00:58]}
O-O {[%clk 01:29:51]} {[%emt 00:00:47]} 6. a3 {[%clk 01:24:34]} {[%emt
00:05:36]} Bxc5 {[%clk 01:30:18]} {[%emt 00:00:04]} 7. Nf3 {[%clk 01:24:52]}
{[%emt 00:00:12]} b6 {[%clk 01:26:25]} {[%emt 00:04:23]} 8. Bf4 {[%clk
01:22:49]} {[%emt 00:02:33]} Bb7 {[%clk 01:21:40]} {[%emt 00:05:14]} 9. Rd1
{[%clk 01:19:48]} {[%emt 00:03:32]} Nc6 {[%clk 01:17:32]} {[%emt 00:04:39]} 10.
b4 {[%clk 01:08:51]} {[%emt 00:11:26]} Be7 {[%clk 01:17:54]} {[%emt 00:00:08]}
11. e4 {[%clk 01:08:24]} {[%emt 00:00:57]} Rc8 {[%clk 01:15:26]} {[%emt
00:02:58]} 12. Be2 {[%clk 01:02:01]} {[%emt 00:06:54]} Ne8 {[%emt 00:08:22]} 13.
O-O {[%clk 00:53:05]} {[%emt 00:09:25]} a5 {[%clk 01:02:10]} {[%emt 00:05:54]}
14. b5 {[%clk 00:39:41]} {[%emt 00:13:54]} Nb8 {[%clk 01:02:37]} {[%emt
00:00:02]} 15. Na4 {[%clk 00:33:18]} {[%emt 00:06:54]} d6 {[%clk 01:00:13]}
{[%emt 00:02:54]} 16. e5 {[%clk 00:28:43]} {[%emt 00:05:05]} d5 {[%clk
00:57:15]} {[%emt 00:03:28]} 17. Qb2 {[%clk 00:22:44]} {[%emt 00:06:29]} Nd7
{[%clk 00:57:21]} {[%emt 00:00:24]} 18. cxd5 {[%clk 00:20:18]} {[%emt
00:02:56]} Bxd5 {[%clk 00:51:40]} {[%emt 00:06:11]} 19. Nc3 {[%clk 00:20:17]}
{[%emt 00:00:31]} Ba8 {[%clk 00:48:15]} {[%emt 00:03:54]} 20. Nd2 {[%clk
00:19:58]} {[%emt 00:00:50]} Nc7 {[%clk 00:36:30]} {[%emt 00:12:15]} 21. Bf3
{[%clk 00:17:06]} {[%emt 00:03:22]} Nd5 {[%clk 00:28:15]} {[%emt 00:08:45]} 22.
Nxd5 {[%clk 00:17:13]} {[%emt 00:00:23]} exd5 {[%clk 00:28:43]} {[%emt
00:00:02]} 23. Nb3 {[%clk 00:12:18]} {[%emt 00:05:24]} Nc5 {[%clk 00:28:43]}
{[%emt 00:00:31]} 24. Nd4 {[%clk 00:11:50]} {[%emt 00:00:58]} Ne6 {[%clk
00:26:07]} {[%emt 00:03:05]} 25. Be3 {[%clk 00:12:08]} {[%emt 00:00:13]} Bc5
{[%clk 00:19:57]} {[%emt 00:06:39]} 26. Nf5 {[%clk 00:11:05]} {[%emt 00:01:34]}
Bxe3 {[%clk 00:08:22]} {[%emt 00:12:06]} 27. Nxe3 {[%clk 00:11:02]} {[%emt
00:00:32]} Rc5 {[%clk 00:08:25]} {[%emt 00:00:27]} 28. Nf5 {[%clk 00:09:06]}
{[%emt 00:02:26]} Qg5 {[%clk 00:06:00]} {[%emt 00:02:54]} 29. Nd6 {[%clk
00:06:57]} {[%emt 00:02:39]} Rd8 {[%clk 00:06:20]} {[%emt 00:00:10]} 30. Rfe1
{[%clk 00:04:24]} {[%emt 00:03:04]} f6 {[%clk 00:03:35]} {[%emt 00:03:15]} 31.
Qa2 {[%clk 00:04:22]} {[%emt 00:00:32]} fxe5 {[%clk 00:02:06]} {[%emt
00:01:59]} 32. Bxd5 {[%clk 00:02:54]} {[%emt 00:01:58]} Rxd5 {[%clk 00:02:07]}
{[%emt 00:00:30]} 33. Rxd5 {[%clk 00:02:08]} {[%emt 00:01:15]} Rxd6 {[%clk
00:02:34]} {[%emt 00:00:03]} 34. f4 {[%clk 00:00:32]} {[%emt 00:02:06]} Bxd5
{[%clk 00:02:59]} {[%emt 00:00:05]} 0-1

[Event "Elitserien 2019/2020, round 1-3"]
[Site "Uppsala University, Gamla torget, Uppsala, Sweden"]
[Date "2019.10.19"]
[Round "2.6"]
[White "Sevastianov, Andrii"]
[Black "Berovski, Krum"]
[Result "1-0"]
[TimeControl "90 minutes for 40 moves + 30 minutes for the rest of the game + 30 seconds per move from move one."]
[WhiteFideId "1730240"]
[BlackFideId "2902931"]
[WhiteElo "2118"]
[BlackElo "2349"]

1. c4 {[%clk 01:30:49]} {[%emt 00:00:10]} e6 {[%clk 01:30:48]} {[%emt
00:00:13]} 2. g3 {[%clk 01:30:56]} {[%emt 00:00:22]} Nf6 {[%clk 01:31:09]}
{[%emt 00:00:10]} 3. Bg2 {[%clk 01:31:02]} {[%emt 00:00:22]} d5 {[%clk
01:31:33]} {[%emt 00:00:07]} 4. Nf3 {[%clk 01:31:14]} {[%emt 00:00:17]} d4
{[%clk 01:30:22]} {[%emt 00:01:42]} 5. O-O {[%clk 01:29:54]} {[%emt 00:01:48]}
c5 {[%clk 01:30:46]} {[%emt 00:00:07]} 6. e3 {[%clk 01:30:03]} {[%emt
00:00:20]} Nc6 {[%clk 01:31:05]} {[%emt 00:00:12]} 7. exd4 {[%clk 01:30:22]}
{[%emt 00:00:12]} cxd4 {[%clk 01:31:29]} {[%emt 00:00:06]} 8. Re1 {[%clk
01:30:45]} {[%emt 00:00:07]} Be7 {[%clk 01:26:08]} {[%emt 00:05:52]} 9. d3
{[%clk 01:30:53]} {[%emt 00:00:21]} Nd7 {[%clk 01:23:24]} {[%emt 00:03:15]} 10.
b3 {[%clk 01:21:38]} {[%emt 00:09:44]} O-O {[%clk 01:20:12]} {[%emt 00:03:41]}
11. Ba3 {[%clk 01:20:58]} {[%emt 00:01:10]} a5 {[%clk 01:18:57]} {[%emt
00:01:46]} 12. Bb2 {[%clk 01:14:54]} {[%emt 00:06:33]} e5 {[%clk 01:16:46]}
{[%emt 00:02:42]} 13. Na3 {[%clk 01:15:04]} {[%emt 00:00:20]} f6 {[%clk
01:15:24]} {[%emt 00:01:52]} 14. Nb5 {[%clk 01:15:24]} {[%emt 00:00:11]} Nc5
{[%clk 01:15:21]} {[%emt 00:00:32]} 15. Ba3 {[%clk 01:12:09]} {[%emt 00:03:45]}
Nb4 {[%clk 01:09:15]} {[%emt 00:06:37]} 16. Bxb4 {[%clk 01:00:40]} {[%emt
00:11:58]} axb4 {[%clk 01:08:45]} {[%emt 00:01:00]} 17. Qe2 {[%clk 01:01:03]}
{[%emt 00:00:07]} Bf5 {[%clk 01:03:28]} {[%emt 00:05:47]} 18. Nfxd4 {[%clk
00:55:12]} {[%emt 00:06:20]} Bxd3 {[%clk 01:01:39]} {[%emt 00:02:19]} 19. Qe3
{[%clk 00:53:06]} {[%emt 00:02:08]} exd4 {[%clk 00:56:18]} {[%emt 00:05:52]} 20.
Qxe7 {[%clk 00:53:44]} {[%emt 00:00:20]} Qxe7 {[%clk 00:56:41]} {[%emt
00:00:06]} 21. Rxe7 {[%clk 00:54:03]} {[%emt 00:00:10]} Nxb3 {[%clk 00:56:49]}
{[%emt 00:00:24]} 22. Bd5+ {[%clk 00:51:39]} {[%emt 00:02:53]} Kh8 {[%clk
00:56:17]} {[%emt 00:01:04]} 23. Rae1 {[%clk 00:51:52]} {[%emt 00:00:15]} Nd2
{[%clk 00:50:49]} {[%emt 00:06:00]} 24. Nd6 {[%clk 00:50:10]} {[%emt 00:02:12]}
h5 {[%clk 00:51:03]} {[%emt 00:00:15]} 25. c5 {[%clk 00:46:35]} {[%emt
00:04:04]} Nb1 {[%clk 00:45:03]} {[%emt 00:06:31]} 26. Rxb7 {[%clk 00:39:09]}
{[%emt 00:07:55]} Nc3 {[%clk 00:43:33]} {[%emt 00:02:01]} 27. Rxb4 {[%clk
00:38:24]} {[%emt 00:01:14]} Ra5 {[%clk 00:40:25]} {[%emt 00:03:39]} 28. Bf3
{[%clk 00:30:34]} {[%emt 00:08:19]} Rxc5 {[%clk 00:36:43]} {[%emt 00:04:12]} 29.
Rxd4 {[%clk 00:30:52]} {[%emt 00:00:11]} Ba6 {[%clk 00:35:32]} {[%emt
00:01:42]} 30. Kg2 {[%clk 00:17:23]} {[%emt 00:14:00]} Re5 {[%clk 00:22:57]}
{[%emt 00:13:05]} 31. Rxe5 {[%clk 00:13:31]} {[%emt 00:04:20]} fxe5 {[%clk
00:23:23]} {[%emt 00:00:05]} 32. Rd2 {[%clk 00:13:09]} {[%emt 00:00:51]} h4
{[%clk 00:17:34]} {[%emt 00:06:21]} 33. gxh4 {[%clk 00:11:22]} {[%emt
00:02:17]} Rf4 {[%clk 00:10:39]} {[%emt 00:07:25]} 34. Rc2 {[%clk 00:10:37]}
{[%emt 00:01:13]} Nb5 {[%clk 00:09:19]} {[%emt 00:01:52]} 35. Nxb5 {[%clk
00:08:59]} {[%emt 00:02:08]} Bxb5 {[%clk 00:09:45]} {[%emt 00:00:04]} 36. Rc5
{[%clk 00:08:46]} {[%emt 00:00:42]} Bc4 {[%clk 00:10:03]} {[%emt 00:00:13]} 37.
Rxe5 {[%clk 00:03:04]} {[%emt 00:06:11]} Bxa2 {[%clk 00:10:26]} {[%emt
00:00:08]} 38. Re8+ {[%clk 00:01:41]} {[%emt 00:01:52]} Kh7 {[%clk 00:09:05]}
{[%emt 00:01:52]} 39. Kg3 {[%clk 00:02:00]} {[%emt 00:00:11]} Bf7 {[%clk
00:06:57]} {[%emt 00:02:38]} 40. Be4+ {[%clk 00:01:01]} {[%emt 00:01:27]} g6
{[%clk 00:07:12]} {[%emt 00:00:16]} 41. Re7 {[%clk 00:26:25]} {[%emt 00:07:22]}
Rf6 {[%clk 00:37:24]} {[%emt 00:00:19]} 42. Bd5 {[%clk 00:26:39]} {[%emt
00:00:17]} 1-0